fUST/lending_fUST_20250410
["ID","MTS","AMOUNT","RATE_DAILY","PERIOD"]
[357650697,1744272645152,-665.7,0.00017114,2]
[357650698,1744272645170,-563.79621794,0.00017114,2]
[357650699,1744272645189,-500.0,0.00017114,2]
[357650700,1744272645207,-2079.04,0.00017114,2]
[357650701,1744272645225,-151.0,0.00017114,2]
[357650702,1744272645244,-500.0,0.00017114,2]
[357650703,1744272645262,-151.0,0.00017114,2]
[357650704,1744272645280,-151.0,0.00017114,2]
[357650705,1744272645299,-151.0,0.00017114,2]
[357650706,1744272645317,-256.410632,0.00017114,2]
[357650707,1744272645336,-256.410632,0.00017114,2]
[357650708,1744272645359,-500.0,0.00017114,2]
[357650709,1744272645376,-1519.31,0.00017114,2]
[357650710,1744272645395,-256.410632,0.00017114,2]
[357650711,1744272645416,-256.410632,0.00017114,2]
[357650712,1744272645437,-500.0,0.00017114,2]
[357650713,1744272645455,-151.0,0.00017114,2]
[357650714,1744272645473,-151.0,0.00017114,2]
[357650715,1744272645494,-151.0,0.00017114,2]
[357650716,1744272645695,-151.0,0.00017114,2]
[357650717,1744272645711,-500.0,0.00017114,2]
[357650718,1744272645721,-1019.52,0.00017114,2]
[357650719,1744272645732,-948.92,0.00017114,2]
[357650720,1744272645743,-151.0,0.00017114,2]
[357650721,1744272645753,-159.016382,0.00017114,2]
[357650722,1744272645763,-500.0,0.00017114,2]
[357650723,1744272645773,-1452.87,0.00017114,2]
[357650724,1744272645784,-500.0,0.00017114,2]
[357650725,1744272645794,-500.0,0.00017114,2]
[357650726,1744272645804,-500.0,0.00017114,2]
[357650727,1744272645814,-500.0,0.00017114,2]
[357650728,1744272645823,-500.0,0.00017114,2]
[357650729,1744272645834,-500.0,0.00017114,2]
[357650730,1744272645845,-4022.88,0.00017114,2]
[357650731,1744272645855,-594.79,0.00017114,2]
[357650732,1744272645864,-151.0,0.00017114,2]
[357650733,1744272645874,-151.0,0.00017114,2]
[357650734,1744272645884,-1508.94,0.00017114,2]
[357650735,1744272645894,-500.0,0.00017114,2]
[357650736,1744272645904,-151.0,0.00017114,2]
[357650737,1744272645914,-671.49,0.00017114,2]
[357650738,1744272645925,-151.0,0.00017114,2]
[357650739,1744272645935,-3697.38,0.00017114,2]
[357650740,1744272645945,-2125.33758832,0.00017114,2]
[357650746,1744272646309,-822.16412362,0.00017114,2]
[357650748,1744272647030,-500.0,0.00016973,2]
[357650749,1744272647040,-500.0,0.00017014,2]
[357650750,1744272647051,-151.0,0.00017014,2]
[357650751,1744272647061,-209.06414,0.00017015,2]
[357650752,1744272647071,-91.27828806,0.00017114,2]
[357650753,1744272647219,-500.0,0.00017114,2]
[357650754,1744272647230,-500.0,0.00017114,2]
[357650755,1744272647240,-151.0,0.00017114,2]
[357650756,1744272647249,-263.433644,0.00017114,2]
[357650757,1744272647258,-344.990964,0.00017114,2]
[357650758,1744272647270,-2658.519036,0.00017114,2]
[357650759,1744272647280,-2579.55410024,0.00017114,2]
[357650760,1744272648297,-940.72,0.00017012,2]
[357650761,1744272648308,-457.33589976,0.00017114,2]
[357650762,1744272648317,-3708.74,0.00017114,2]
[357650763,1744272648328,-423.418837,0.00017114,2]
[357650764,1744272648338,-423.418837,0.00017114,2]
[357650765,1744272648354,-423.418837,0.00017114,2]
[357650766,1744272648363,-423.418837,0.00017114,2]
[357650767,1744272648374,-1123.0,0.00017114,2]
[357650768,1744272648384,-668.82,0.00017115,2]
[357650769,1744272648395,-500.0,0.00017115,2]
[357650770,1744272648405,-500.0,0.00017115,2]
[357650771,1744272648415,-500.0,0.00017115,2]
[357650772,1744272648427,-632.55,0.00017115,2]
[357650773,1744272648439,-501.40237653,0.00017115,2]
[357650774,1744272648450,-500.0,0.00017115,2]
[357650775,1744272648460,-500.0,0.00017115,2]
[357650776,1744272648471,-500.0,0.00017115,2]
[357650777,1744272648481,-501.31465498,0.00017115,2]
[357650778,1744272648492,-500.0,0.00017115,2]
[357650779,1744272648502,-500.0,0.00017115,2]
[357650780,1744272648512,-500.0,0.00017115,2]
[357650781,1744272648522,-500.0,0.00017115,2]
[357650782,1744272648532,-500.0,0.00017115,2]
[357650783,1744272648542,-500.0,0.00017115,2]
[357650784,1744272648552,-500.0,0.00017115,2]
[357650785,1744272648563,-500.0,0.00017115,2]
[357650786,1744272648573,-500.0,0.00017115,2]
[357650787,1744272648583,-500.0,0.00017115,2]
[357650788,1744272648594,-514.14068882,0.00017115,2]
[357650789,1744272648604,-636.61248503,0.00017115,2]
[357650790,1744272648614,-500.0,0.00017115,2]
[357650791,1744272648624,-500.0,0.00017115,2]
[357650792,1744272648633,-500.0,0.00017115,2]
[357650793,1744272648644,-500.0,0.00017115,2]
[357650794,1744272648654,-500.0,0.00017115,2]
[357650795,1744272648664,-500.0,0.00017115,2]
[357650796,1744272648675,-500.0,0.00017115,2]
[357650797,1744272648685,-500.0,0.00017115,2]
[357650798,1744272648695,-500.0,0.00017115,2]
[357650799,1744272648704,-500.0,0.00017115,2]
[357650800,1744272648715,-745.69,0.00017115,2]
[357650801,1744272648724,-500.0,0.00017115,2]
[357650802,1744272648734,-500.0,0.00017115,2]
[357650803,1744272648743,-500.0,0.00017115,2]
[357650804,1744272648753,-500.0,0.00017115,2]
[357650805,1744272648763,-500.0,0.00017115,2]
[357650806,1744272648772,-500.0,0.00017115,2]
[357650807,1744272648783,-500.0,0.00017115,2]
[357650808,1744272648792,-502.01,0.00017115,2]
[357650809,1744272648804,-500.0,0.00017115,2]
[357650810,1744272648814,-500.0,0.00017115,2]
[357650811,1744272648824,-500.0,0.00017115,2]
[357650812,1744272648834,-500.0,0.00017115,2]
[357650813,1744272648845,-500.0,0.00017115,2]
[357650814,1744272648855,-500.0,0.00017115,2]
[357650815,1744272648866,-500.0,0.00017115,2]
[357650816,1744272648876,-500.0,0.00017115,2]
[357650817,1744272648885,-500.0,0.00017115,2]
[357650818,1744272648895,-500.0,0.00017115,2]
[357650819,1744272648906,-500.0,0.00017115,2]
[357650820,1744272648916,-815.61,0.00017115,2]
[357650821,1744272648926,-500.0,0.00017115,2]
[357650822,1744272648937,-380.03272578,0.00017115,2]
[357650823,1744272648947,-500.0,0.00017115,2]
[357650824,1744272648957,-508.20095778,0.00017115,2]
[357650825,1744272648968,-500.0,0.00017115,2]
[357650826,1744272648979,-500.0,0.00017115,2]
[357650827,1744272648989,-645.16,0.00017115,2]
[357650828,1744272648999,-926.3,0.00017115,2]
[357650829,1744272649011,-500.0,0.00017115,2]
[357650830,1744272649021,-1302.33,0.00017115,2]
[357650831,1744272649031,-500.0,0.00017115,2]
[357650832,1744272649209,-500.0,0.00017115,2]
[357650833,1744272649219,-500.0,0.00017115,2]
[357650834,1744272649229,-503.0116718,0.00017115,2]
[357650835,1744272649239,-500.0,0.00017115,2]
[357650836,1744272649249,-1176.46,0.00017115,2]
[357650837,1744272649259,-500.0,0.00017115,2]
[357650838,1744272649269,-500.0,0.00017115,2]
[357650839,1744272649278,-500.0,0.00017115,2]
[357650840,1744272649289,-1287.01,0.00017115,2]
[357650841,1744272649299,-500.0,0.00017115,2]
[357650842,1744272649309,-500.0,0.00017115,2]
[357650843,1744272649320,-500.0,0.00017115,2]
[357650844,1744272649330,-500.0,0.00017115,2]
[357650845,1744272649342,-500.0,0.00017115,2]
[357650846,1744272649355,-500.0,0.00017115,2]
[357650847,1744272649366,-500.0,0.00017115,2]
[357650848,1744272649377,-500.0,0.00017115,2]
[357650849,1744272649387,-500.0,0.00017115,2]
[357650850,1744272649397,-575.54,0.00017115,2]
[357650851,1744272649407,-1805.5,0.00017115,2]
[357650852,1744272649418,-500.0,0.00017115,2]
[357650853,1744272649429,-500.0,0.00017115,2]
[357650854,1744272649439,-500.0,0.00017115,2]
[357650855,1744272649449,-500.0,0.00017115,2]
[357650856,1744272649460,-500.0,0.00017115,2]
[357650857,1744272649471,-500.0,0.00017115,2]
[357650858,1744272649480,-500.0,0.00017115,2]
[357650859,1744272649491,-500.0,0.00017115,2]
[357650860,1744272649502,-1798.27,0.00017115,2]
[357650861,1744272649527,-500.0,0.00017115,2]
[357650862,1744272649538,-500.0,0.00017115,2]
[357650863,1744272649549,-500.0,0.00017115,2]
[357650864,1744272649560,-151.0,0.00017115,2]
[357650865,1744272649571,-151.0,0.00017115,2]
[357650866,1744272649582,-151.0,0.00017115,2]
[357650867,1744272649594,-500.0,0.00017115,2]
[357650868,1744272649605,-500.0,0.00017115,2]
[357650869,1744272649615,-500.0,0.00017115,2]
[357650870,1744272649628,-500.0,0.00017115,2]
[357650871,1744272649639,-500.0,0.00017115,2]
[357650872,1744272649652,-500.19998697,0.00017115,2]
[357650873,1744272649663,-500.0,0.00017115,2]
[357650874,1744272649674,-500.0,0.00017115,2]
[357650875,1744272649685,-500.0,0.00017115,2]
[357650876,1744272649696,-500.0,0.00017115,2]
[357650877,1744272649706,-500.0,0.00017115,2]
[357650878,1744272649717,-571.53,0.00017115,2]
[357650879,1744272649727,-500.0,0.00017115,2]
[357650880,1744272649738,-500.0,0.00017115,2]
[357650881,1744272649748,-500.0,0.00017115,2]
[357650882,1744272649758,-500.0,0.00017115,2]
[357650883,1744272649769,-505.92626526,0.00017115,2]
[357650884,1744272649779,-500.0,0.00017115,2]
[357650885,1744272649789,-500.0,0.00017115,2]
[357650886,1744272649799,-500.0,0.00017115,2]
[357650887,1744272649809,-500.0,0.00017115,2]
[357650888,1744272649820,-500.0,0.00017115,2]
[357650889,1744272649830,-503.99022656,0.00017115,2]
[357650890,1744272649842,-500.0,0.00017115,2]
[357650891,1744272649852,-500.0,0.00017115,2]
[357650892,1744272649862,-151.0,0.00017115,2]
[357650893,1744272649872,-151.0,0.00017115,2]
[357650894,1744272649882,-151.520807,0.00017115,2]
[357650895,1744272649892,-500.0,0.00017115,2]
[357650896,1744272649902,-500.0,0.00017115,2]
[357650897,1744272649912,-500.0,0.00017115,2]
[357650898,1744272649922,-640.11,0.00017115,2]
[357650899,1744272649931,-500.0,0.00017115,2]
[357650900,1744272649941,-500.0,0.00017115,2]
[357650901,1744272649951,-500.0,0.00017115,2]
[357650902,1744272649961,-500.0,0.00017115,2]
[357650903,1744272649971,-1007.04,0.00017115,2]
[357650904,1744272649982,-500.0,0.00017115,2]
[357650905,1744272649993,-500.0,0.00017115,2]
[357650906,1744272650004,-500.0,0.00017115,2]
[357650907,1744272650015,-500.0,0.00017115,2]
[357650908,1744272650024,-500.0,0.00017115,2]
[357650909,1744272650034,-500.0,0.00017115,2]
[357650910,1744272650044,-500.0,0.00017115,2]
[357650911,1744272650056,-500.0,0.00017115,2]
[357650912,1744272650065,-151.0,0.00017115,2]
[357650913,1744272650075,-500.0,0.00017115,2]
[357650914,1744272650084,-151.0,0.00017115,2]
[357650915,1744272650096,-151.0,0.00017115,2]
[357650916,1744272650105,-500.0,0.00017115,2]
[357650917,1744272650115,-500.0,0.00017115,2]
[357650918,1744272650125,-1571.28,0.00017115,2]
[357650919,1744272650135,-500.0,0.00017115,2]
[357650920,1744272650144,-500.0,0.00017115,2]
[357650921,1744272650154,-350.51234022,0.00017115,2]
[357650922,1744272650164,-151.0,0.00017115,2]
[357650923,1744272650172,-151.0,0.00017115,2]
[357650924,1744272650181,-158.29505,0.00017115,2]
[357650925,1744272650189,-530.31195676,0.00017115,2]
[357650926,1744272650198,-500.0,0.00017115,2]
[357650927,1744272650207,-508.2268594,0.00017115,2]
[357650928,1744272650215,-500.0,0.00017115,2]
[357650929,1744272650224,-500.0,0.00017115,2]
[357650930,1744272650232,-500.0,0.00017115,2]
[357650931,1744272650241,-634.24,0.00017115,2]
[357650932,1744272650250,-864.34,0.00017115,2]
[357650933,1744272650258,-614.43,0.00017115,2]
[357650934,1744272650267,-500.0,0.00017115,2]
[357650935,1744272650276,-500.0,0.00017115,2]
[357650936,1744272650284,-500.0,0.00017115,2]
[357650937,1744272650294,-1667.08,0.00017115,2]
[357650938,1744272650304,-500.0,0.00017115,2]
[357650939,1744272650313,-500.0,0.00017115,2]
[357650940,1744272650323,-500.0,0.00017115,2]
[357650941,1744272650333,-500.0,0.00017115,2]
[357650942,1744272650346,-500.0,0.00017115,2]
[357650943,1744272650357,-500.0,0.00017115,2]
[357650944,1744272650367,-500.45956698,0.00017115,2]
[357650945,1744272650377,-500.0,0.00017115,2]
[357650946,1744272650387,-151.0,0.00017115,2]
[357650947,1744272650395,-151.0,0.00017115,2]
[357650948,1744272650404,-600.6,0.00017115,2]
[357650949,1744272650413,-151.0,0.00017115,2]
[357650950,1744272650423,-151.0,0.00017115,2]
[357650951,1744272650434,-500.8935755,0.00017115,2]
[357650952,1744272650444,-500.0,0.00017115,2]
[357650953,1744272650453,-500.0,0.00017115,2]
[357650954,1744272650463,-500.0,0.00017115,2]
[357650955,1744272650473,-500.0,0.00017115,2]
[357650956,1744272650482,-469.56555356,0.00017115,2]
[357650957,1744272650492,-500.0,0.00017115,2]
[357650958,1744272650501,-151.0,0.00017115,2]
[357650959,1744272650511,-500.0,0.00017115,2]
[357650960,1744272650520,-500.0,0.00017115,2]
[357650961,1744272650530,-526.34329619,0.00017115,2]
[357650962,1744272650540,-500.0,0.00017115,2]
[357650963,1744272650550,-239.479358,0.00017115,2]
[357650964,1744272650560,-500.0,0.00017115,2]
[357650965,1744272650569,-1002.38160098,0.00017115,2]
[357650966,1744272650578,-500.0,0.00017115,2]
[357650967,1744272650587,-500.0,0.00017115,2]
[357650968,1744272650598,-500.0,0.00017115,2]
[357650969,1744272650607,-500.0,0.00017115,2]
[357650970,1744272650616,-500.0,0.00017115,2]
[357650971,1744272650626,-151.0,0.00017115,2]
[357650972,1744272650635,-151.0,0.00017115,2]
[357650973,1744272650644,-151.0,0.00017115,2]
[357650974,1744272650653,-567.75266961,0.00017115,2]
[357650975,1744272650662,-545.27765875,0.00017115,2]
[357650976,1744272650671,-151.0,0.00017115,2]
[357650977,1744272650680,-151.0,0.00017115,2]
[357650978,1744272650689,-151.0,0.00017115,2]
[357650979,1744272650697,-151.0,0.00017115,2]
[357650980,1744272650707,-500.0,0.00017115,2]
[357650981,1744272650716,-500.0,0.00017115,2]
[357650982,1744272650726,-500.0,0.00017115,2]
[357650983,1744272650735,-500.0,0.00017115,2]
[357650984,1744272650746,-917.26,0.00017115,2]
[357650985,1744272650755,-500.0,0.00017115,2]
[357650986,1744272650765,-500.0,0.00017115,2]
[357650987,1744272650774,-500.0,0.00017115,2]
[357650988,1744272650784,-155.28608585,0.00017115,2]
[357650989,1744272650794,-912.13,0.00017115,2]
[357650990,1744272650803,-500.0,0.00017115,2]
[357650991,1744272650812,-500.0,0.00017115,2]
[357650992,1744272650822,-500.0,0.00017115,2]
[357650993,1744272650831,-511.56624358,0.00017115,2]
[357650994,1744272650842,-500.0,0.00017115,2]
[357650995,1744272650852,-500.0,0.00017115,2]
[357650996,1744272650861,-2242.957778,0.00017115,2]
[357650997,1744272650871,-2242.957778,0.00017115,2]
[357650998,1744272650883,-1789.98603875,0.00017115,2]
[357650999,1744272651256,-500.0,0.00016699,2]
[357651000,1744272651266,-500.0,0.00016973,2]
[357651001,1744272651276,-452.97173925,0.00017115,2]
[357651002,1744272651286,-2242.957778,0.00017115,2]
[357651003,1744272651295,-2242.957778,0.00017115,2]
[357651004,1744272651306,-2242.957778,0.00017115,2]
[357651005,1744272651316,-649.59350998,0.00017115,2]
[357651006,1744272728787,354.15,0.00010959,2]
[357651008,1744272739340,295.12,0.00010959,2]
[357651009,1744272750011,245.93,0.00010959,2]
[357651010,1744272760493,204.95,0.00010959,2]
[357651011,1744272771235,170.79,0.00010959,2]
[357651012,1744272782300,853.96,0.00010959,2]
[357651015,1744273244311,-200.0,0.00015584,2]
[357651057,1744273745653,-157.93148628,0.00015584,2]
[357651133,1744273809617,-342.06851372,0.00015559,2]
[357651145,1744273832402,-290.86305928,0.00015559,2]
[357651146,1744273832412,-492.73694072,0.00015584,2]
[357651147,1744273832424,-215.7370656,0.00015584,2]
[357651148,1744273832434,-303.0,0.00015584,2]
[357651149,1744273832444,-245.84206507,0.0001648,5]
[357651150,1744273832454,-1439.8031755,0.00016497,2]
[357651151,1744273832464,-300.0,0.00016571,2]
[357651152,1744273832474,-215.88972705,0.00016572,2]
[357651153,1744273832485,-500.0,0.00016572,2]
[357651154,1744273832494,-500.0,0.00016572,2]
[357651155,1744273832504,-406.81828227,0.00016572,2]
[357651156,1744273832513,-500.0,0.00016573,2]
[357651157,1744273832523,-500.0,0.00016573,2]
[357651158,1744273832532,-500.0,0.00016573,2]
[357651159,1744273832542,-500.0,0.00016573,2]
[357651160,1744273832552,-500.0,0.00016573,2]
[357651161,1744273832562,-501.15278312,0.00016573,2]
[357651162,1744273832571,-501.38952507,0.00016573,2]
[357651164,1744273832582,-501.77968287,0.00016573,2]
[357651166,1744273832592,-500.0,0.00016573,2]
[357651168,1744273832602,-240.61591793,0.00016573,2]
[357651171,1744273832612,-153.52600086,0.0001659,2]
[357651173,1744273832623,-1650.0,0.00016596,2]
[357651174,1744273832634,-500.0,0.00016596,2]
[357651175,1744273832644,-500.0,0.00016596,2]
[357651176,1744273832653,-500.0,0.00016596,2]
[357651177,1744273832663,-506.5551536,0.00016596,2]
[357651178,1744273832678,-500.0,0.00016596,2]
[357651179,1744273832693,-500.0,0.00016596,2]
[357651180,1744273832704,-460.69316557,0.00016596,2]
[357651181,1744273832714,-1692.16,0.00016596,2]
[357651182,1744273832724,-582.43,0.00016596,2]
[357651183,1744273832736,-660.81,0.00016596,2]
[357651184,1744273832746,-641.65439337,0.00016596,2]
[357651185,1744273832756,-6286.75,0.00016596,2]
[357651186,1744273832767,-656.26,0.00016596,2]
[357651187,1744273832778,-500.0,0.00016596,2]
[357651188,1744273832788,-500.0,0.00016596,2]
[357651189,1744273832798,-500.0,0.00016596,2]
[357651190,1744273832809,-500.0,0.00016596,2]
[357651191,1744273832819,-294.36451596,0.00016596,2]
[357651192,1744273832830,-6750.92,0.00016597,2]
[357651193,1744273832840,-500.0,0.00016597,2]
[357651194,1744273832851,-1654.29,0.00016597,2]
[357651195,1744273832861,-1971.44,0.00016597,2]
[357651196,1744273832871,-500.0,0.00016597,2]
[357651197,1744273832881,-6600.5,0.00016597,2]
[357651198,1744273832891,-12548.17,0.00016597,2]
[357651199,1744273832901,-4641.49186317,0.00016597,2]
[357651200,1744273832924,-200.0,0.0001659,2]
[357651201,1744273832934,-1095.21813683,0.00016597,2]
[357651202,1744273832944,-2619.51,0.00016597,2]
[357651203,1744273832955,-616.16,0.00016597,2]
[357651204,1744273832965,-2858.98,0.00016597,2]
[357651205,1744273832975,-500.0,0.00016597,2]
[357651206,1744273832985,-706.87,0.00016597,2]
[357651207,1744273832996,-3506.35,0.00016597,2]
[357651208,1744273833007,-6786.65,0.00016597,2]
[357651209,1744273833017,-500.0,0.00016597,2]
[357651210,1744273833029,-500.0,0.00016597,2]
[357651211,1744273833039,-681.69,0.00016597,2]
[357651212,1744273833050,-843.67,0.00016597,2]
[357651213,1744273833061,-783.38,0.00016597,2]
[357651214,1744273833071,-486.92453568,0.00016597,2]
[357651215,1744273833081,-500.0,0.00016597,2]
[357651216,1744273833092,-500.0,0.00016597,2]
[357651217,1744273833102,-500.0,0.00016597,2]
[357651218,1744273833112,-1181.19,0.00016597,2]
[357651219,1744273833123,-1071.73,0.00016597,2]
[357651220,1744273833133,-317.18985602,0.00016597,2]
[357651240,1744273838509,-337.55875385,0.00016596,2]
[357651241,1744273838523,-162.44124615,0.00016596,2]
[357651242,1744273838533,-234.04662224,0.00016596,2]
[357651243,1744273838624,-2094.78337776,0.00016596,2]
[357651244,1744273838634,-6469.64,0.00016596,2]
[357651245,1744273838644,-513.46299208,0.00016596,2]
[357651246,1744273838654,-795.58,0.00016596,2]
[357651247,1744273838664,-4010.14014398,0.00016597,2]
[357651248,1744273838674,-2799.0,0.00016597,2]
[357651250,1744273838686,-5526.46,0.00016597,2]
[357651251,1744273838697,-500.0,0.00016597,2]
[357651252,1744273838706,-761.13,0.00016597,2]
[357651253,1744273838716,-893.01,0.00016597,2]
[357651254,1744273838727,-500.0,0.00016598,2]
[357651255,1744273838737,-588.83,0.00016598,2]
[357651256,1744273838746,-500.0,0.00016598,2]
[357651257,1744273838757,-500.0,0.00016598,2]
[357651258,1744273838769,-763.14,0.00016598,2]
[357651259,1744273838779,-948.58,0.00016598,2]
[357651260,1744273838788,-588.44,0.00016598,2]
[357651261,1744273838798,-1224.08,0.00016598,2]
[357651262,1744273838808,-500.0,0.00016598,2]
[357651263,1744273838819,-500.0,0.00016598,2]
[357651264,1744273838829,-500.0,0.00016598,2]
[357651265,1744273838838,-537.87,0.00016598,2]
[357651266,1744273838848,-500.0,0.00016598,2]
[357651267,1744273838858,-853.0,0.00016598,2]
[357651268,1744273838868,-534.12,0.00016598,2]
[357651269,1744273838878,-500.0,0.00016598,2]
[357651270,1744273838887,-1181.09,0.00016598,2]
[357651271,1744273838897,-500.0,0.00016598,2]
[357651272,1744273838906,-1028.71,0.00016598,2]
[357651273,1744273838916,-500.0,0.00016598,2]
[357651274,1744273838925,-1508.14,0.00016598,2]
[357651275,1744273838935,-500.0,0.00016598,2]
[357651276,1744273838944,-500.0,0.00016598,2]
[357651277,1744273838954,-500.0,0.00016598,2]
[357651278,1744273838963,-500.0,0.00016598,2]
[357651279,1744273838973,-500.0,0.00016598,2]
[357651280,1744273838982,-500.0,0.00016598,2]
[357651281,1744273838992,-500.0,0.00016598,2]
[357651282,1744273839001,-630.55,0.00016598,2]
[357651283,1744273839011,-270.5579914,0.00016598,2]
[357651284,1744273839021,-593.75,0.00016598,2]
[357651285,1744273839030,-500.0,0.00016598,2]
[357651286,1744273839040,-500.0,0.00016598,2]
[357651287,1744273839050,-1862.52,0.00016598,2]
[357651288,1744273839059,-843.97,0.00016598,2]
[357651289,1744273839070,-500.0,0.00016598,2]
[357651290,1744273839081,-500.0,0.00016598,2]
[357651291,1744273839090,-1510.1,0.00016598,2]
[357651292,1744273839100,-2404.78,0.00016598,2]
[357651293,1744273839110,-1610.68,0.00016598,2]
[357651294,1744273839120,-500.0,0.00016598,2]
[357651295,1744273839130,-943.45,0.00016598,2]
[357651296,1744273839139,-507.06778624,0.00016598,2]
[357651297,1744273839149,-541.26496588,0.00016598,2]
[357651298,1744273839159,-500.0,0.00016598,2]
[357651299,1744273839168,-500.0,0.00016598,2]
[357651300,1744273839178,-500.0,0.00016598,2]
[357651301,1744273839187,-1342.78,0.00016598,2]
[357651302,1744273839197,-516.86,0.00016598,2]
[357651303,1744273839207,-1610.5,0.00016598,2]
[357651304,1744273839217,-4305.64,0.00016598,2]
[357651305,1744273839228,-843.38,0.00016598,2]
[357651306,1744273839237,-590.23,0.00016598,2]
[357651307,1744273839247,-500.0,0.00016598,2]
[357651308,1744273839257,-500.0,0.00016598,2]
[357651309,1744273839266,-1395.82,0.00016598,2]
[357651310,1744273839275,-1075.02,0.00016598,2]
[357651311,1744273839285,-500.0,0.00016598,2]
[357651312,1744273839295,-500.0,0.00016598,2]
[357651313,1744273839304,-1661.16,0.00016598,2]
[357651314,1744273839314,-500.0,0.00016598,2]
[357651315,1744273839324,-500.0,0.00016598,2]
[357651316,1744273839334,-808.87,0.00016598,2]
[357651317,1744273839344,-500.0,0.00016598,2]
[357651318,1744273839354,-500.0,0.00016598,2]
[357651319,1744273839364,-500.0,0.00016598,2]
[357651320,1744273839374,-1562.48,0.00016598,2]
[357651321,1744273839384,-589.91,0.00016598,2]
[357651322,1744273839393,-534.3,0.00016598,2]
[357651323,1744273839403,-500.0,0.00016598,2]
[357651324,1744273839412,-500.0,0.00016598,2]
[357651325,1744273839422,-615.64,0.00016598,2]
[357651326,1744273839432,-854.12,0.00016598,2]
[357651327,1744273839442,-685.07,0.00016598,2]
[357651328,1744273839452,-500.0,0.00016598,2]
[357651329,1744273839461,-500.0,0.00016598,2]
[357651330,1744273839471,-861.89,0.00016598,2]
[357651331,1744273839481,-500.0,0.00016598,2]
[357651332,1744273839490,-500.0,0.00016598,2]
[357651333,1744273839499,-1752.73,0.00016598,2]
[357651334,1744273839509,-500.0,0.00016598,2]
[357651335,1744273839519,-554.37,0.00016598,2]
[357651336,1744273839528,-1348.44,0.00016598,2]
[357651337,1744273839537,-2450.2,0.00016598,2]
[357651338,1744273839552,-892.68,0.00016598,2]
[357651339,1744273839562,-500.0,0.00016598,2]
[357651340,1744273839711,-1576.19,0.00016598,2]
[357651341,1744273839722,-600.05,0.00016598,2]
[357651342,1744273839734,-500.0,0.00016598,2]
[357651343,1744273839744,-585.26505526,0.00016598,2]
[357651344,1744273839754,-500.0,0.00016598,2]
[357651345,1744273839763,-541.54588277,0.00016598,2]
[357651346,1744273839775,-5124.94,0.00016598,2]
[357651347,1744273839786,-500.0,0.00016598,2]
[357651348,1744273839796,-500.0,0.00016598,2]
[357651349,1744273839805,-500.0,0.00016598,2]
[357651350,1744273839815,-701.34,0.00016598,2]
[357651351,1744273839825,-500.0,0.00016598,2]
[357651352,1744273839835,-500.0,0.00016598,2]
[357651353,1744273839846,-500.0,0.00016598,2]
[357651354,1744273839856,-5672.72,0.00016598,2]
[357651355,1744273839866,-500.0,0.00016598,2]
[357651356,1744273839876,-756.4,0.00016598,2]
[357651357,1744273839885,-1081.82,0.00016598,2]
[357651358,1744273839895,-1251.01,0.00016598,2]